[Event "Early-Titled-Tuesday-Blitz-October-03-2023"]
[Site "Chess.com"]
[Date "2023.10.03"]
[Round "4"]
[White "MdChess1734"]
[Black "hakanazeri2"]
[Result "0-1"]
[WhiteElo "2378"]
[BlackElo "2601"]
[TimeControl "180+1"]
[EndTime "8:42:33 PDT"]
[Termination "hakanazeri2 won by resignation"]

1. e4 {[%clk 0:02:55.5]} 1... a6 {[%clk 0:02:58.9]} 2. d4 {[%clk 0:02:54.6]}
2... b5 {[%clk 0:02:59.2]} 3. Bd3 {[%clk 0:02:51.6]} 3... Bb7 {[%clk 0:02:59.3]}
4. Nf3 {[%clk 0:02:52]} 4... e6 {[%clk 0:02:59.8]} 5. c3 {[%clk 0:02:51.9]} 5...
c5 {[%clk 0:02:58.7]} 6. O-O {[%clk 0:02:50.7]} 6... Nf6 {[%clk 0:02:56.9]} 7.
a4 {[%clk 0:02:50.2]} 7... c4 {[%clk 0:02:51.9]} 8. Bc2 {[%clk 0:01:50.7]} 8...
Nxe4 {[%clk 0:02:50.3]} 9. Re1 {[%clk 0:01:36.7]} 9... Nf6 {[%clk 0:02:48.1]}
10. Bg5 {[%clk 0:01:36.6]} 10... Be7 {[%clk 0:02:47.9]} 11. Bxf6 {[%clk
0:01:27.2]} 11... Bxf6 {[%clk 0:02:48.8]} 12. d5 {[%clk 0:01:23.4]} 12... O-O
{[%clk 0:02:43.9]} 13. Be4 {[%clk 0:01:19.8]} 13... exd5 {[%clk 0:02:15.3]} 14.
Bxd5 {[%clk 0:01:18.1]} 14... Nc6 {[%clk 0:02:15.4]} 15. Nbd2 {[%clk 0:01:09]}
15... Be7 {[%clk 0:01:42.8]} 16. Ne4 {[%clk 0:00:53.7]} 16... Qc7 {[%clk
0:01:38.4]} 17. Neg5 {[%clk 0:00:30.3]} 17... Bxg5 {[%clk 0:01:35.4]} 18. Nxg5
{[%clk 0:00:28.7]} 18... Qf4 {[%clk 0:00:30.7]} 19. Qh5 {[%clk 0:00:13.1]} 19...
h6 {[%clk 0:00:30]} 20. Nh3 {[%clk 0:00:06.1]} 20... Qf6 {[%clk 0:00:26.5]} 21.
Re3 {[%clk 0:00:06.1]} 21... Na5 {[%clk 0:00:15.6]} 22. Rae1 {[%clk 0:00:05.6]}
22... Bxd5 {[%clk 0:00:15.3]} 23. Qxd5 {[%clk 0:00:05.6]} 23... Nc6 {[%clk
0:00:10.4]} 24. axb5 {[%clk 0:00:05.6]} 24... axb5 {[%clk 0:00:11.3]} 25. Qxb5
{[%clk 0:00:06.1]} 25... Rab8 {[%clk 0:00:10.7]} 26. Qxc4 {[%clk 0:00:06.5]}
26... Rxb2 {[%clk 0:00:11.2]} 27. Rf3 {[%clk 0:00:04.4]} 27... Qg6 {[%clk
0:00:09]} 28. Qf4 {[%clk 0:00:02.9]} 28... Rfb8 {[%clk 0:00:04.2]} 29. Rg3
{[%clk 0:00:03.1]} 29... Qh5 {[%clk 0:00:01.4]} 30. Rge3 {[%clk 0:00:01.7]}
30... Qc5 {[%clk 0:00:01.3]} 31. Qg3 {[%clk 0:00:01.9]} 31... Qh5 {[%clk
0:00:01.4]} 32. Nf4 {[%clk 0:00:02.3]} 32... Qg5 {[%clk 0:00:01.6]} 33. h4
{[%clk 0:00:02.2]} 33... Qxg3 {[%clk 0:00:01.8]} 34. Rxg3 {[%clk 0:00:02.8]}
34... Rc2 {[%clk 0:00:02.4]} 35. Nh5 {[%clk 0:00:02.3]} 35... g6 {[%clk
0:00:03]} 36. Nf6+ {[%clk 0:00:02.9]} 36... Kg7 {[%clk 0:00:03.7]} 37. Nxd7
{[%clk 0:00:03.5]} 37... Rbb2 {[%clk 0:00:04.3]} 38. Ne5 {[%clk 0:00:03.5]}
38... Nxe5 {[%clk 0:00:04.1]} 39. Rxe5 {[%clk 0:00:04.1]} 39... Rxf2 {[%clk
0:00:04.8]} 40. Ree3 {[%clk 0:00:04.7]} 40... Rfc2 {[%clk 0:00:04.8]} 41. Kh2
{[%clk 0:00:05.3]} 41... h5 {[%clk 0:00:04.3]} 42. Ref3 {[%clk 0:00:05.8]} 42...
Rd2 {[%clk 0:00:02.3]} 43. Re3 {[%clk 0:00:06.1]} 43... Rb1 {[%clk 0:00:02.5]}
44. Rgf3 {[%clk 0:00:03.7]} 44... Rbb2 {[%clk 0:00:01.5]} 45. Rg3 {[%clk
0:00:03.5]} 45... f6 {[%clk 0:00:02]} 46. Ref3 {[%clk 0:00:03.4]} 46... Kf7
{[%clk 0:00:01.4]} 47. Re3 {[%clk 0:00:03.9]} 47... Kg7 {[%clk 0:00:01.8]} 48.
Re4 {[%clk 0:00:04.2]} 48... Rdc2 {[%clk 0:00:02.2]} 49. Re7+ {[%clk 0:00:04.4]}
49... Kh6 {[%clk 0:00:02.7]} 50. Re6 {[%clk 0:00:04.8]} 50... Kg7 {[%clk
0:00:02.4]} 51. Ree3 {[%clk 0:00:04.9]} 51... Rf2 {[%clk 0:00:02.2]} 52. Rd3
{[%clk 0:00:04.8]} 52... Rb1 {[%clk 0:00:02.3]} 53. Rgf3 {[%clk 0:00:04.4]}
53... Re2 {[%clk 0:00:02.5]} 54. Kg3 {[%clk 0:00:04.4]} 54... Rbb2 {[%clk
0:00:02.5]} 55. Rd7+ {[%clk 0:00:04.5]} 55... Kh6 {[%clk 0:00:03.1]} 56. Rxf6
{[%clk 0:00:04.6]} 56... Rxg2+ {[%clk 0:00:03.7]} 57. Kf4 {[%clk 0:00:04.3]}
57... Rbf2+ {[%clk 0:00:02.8]} 58. Ke5 {[%clk 0:00:03.1]} 58... Rxf6 {[%clk
0:00:03]} 59. Kxf6 {[%clk 0:00:03.2]} 59... Rf2+ {[%clk 0:00:03.9]} 60. Ke5
{[%clk 0:00:03.4]} 60... Re2+ {[%clk 0:00:03]} 61. Kf6 {[%clk 0:00:03.7]} 61...
Rf2+ {[%clk 0:00:03.1]} 62. Ke5 {[%clk 0:00:04.1]} 62... Rc2 {[%clk 0:00:03]}
63. Rc7 {[%clk 0:00:03.5]} 63... Rh2 {[%clk 0:00:02.9]} 64. c4 {[%clk 0:00:03]}
64... Rxh4 {[%clk 0:00:03.3]} 65. c5 {[%clk 0:00:03.7]} 65... Rc4 {[%clk
0:00:03.2]} 66. c6 {[%clk 0:00:04.4]} 66... h4 {[%clk 0:00:03.5]} 67. Kd5 {[%clk
0:00:04.8]} 67... Rc1 {[%clk 0:00:03.7]} 68. Ra7 {[%clk 0:00:05.2]} 68... Kg5
{[%clk 0:00:02.7]} 69. c7 {[%clk 0:00:04.9]} 69... h3 {[%clk 0:00:03.2]} 70. Kd6
{[%clk 0:00:05.2]} 70... h2 {[%clk 0:00:02.8]} 71. Ra5+ {[%clk 0:00:05.5]} 71...
Kg4 {[%clk 0:00:02.8]} 72. Rc5 {[%clk 0:00:04.9]} 72... Rd1+ {[%clk 0:00:01.4]}
73. Ke7 {[%clk 0:00:04.8]} 73... Re1+ {[%clk 0:00:01.6]} 74. Kf8 {[%clk
0:00:04.7]} 74... Rf1+ {[%clk 0:00:02]} 75. Kg8 {[%clk 0:00:05]} 75... h1=Q
{[%clk 0:00:02.6]} 76. c8=Q+ {[%clk 0:00:05.1]} 76... Rf5 {[%clk 0:00:03.5]} 77.
Rc4+ {[%clk 0:00:04.8]} 77... Kh5 {[%clk 0:00:03.9]} 78. Qd8 {[%clk 0:00:03]}
78... Qd5+ {[%clk 0:00:03.8]} 79. Qxd5 {[%clk 0:00:02.7]} 79... Rxd5 {[%clk
0:00:04.7]} 80. Kf7 {[%clk 0:00:02.6]} 80... Rf5+ {[%clk 0:00:04.4]} 81. Ke6
{[%clk 0:00:02.9]} 81... Rf2 {[%clk 0:00:03.6]} 82. Ke5 {[%clk 0:00:03.4]} 82...
g5 {[%clk 0:00:03.9]} 83. Rc1 {[%clk 0:00:02.5]} 83... g4 {[%clk 0:00:03.8]} 84.
Ke4 {[%clk 0:00:02.7]} 84... Kh4 {[%clk 0:00:03.6]} 85. Ke3 {[%clk 0:00:02.1]}
85... Rf8 {[%clk 0:00:03.5]} 86. Rh1+ {[%clk 0:00:01.1]} 86... Kg3 {[%clk
0:00:03.5]} 87. Rg1+ {[%clk 0:00:01.6]} 87... Kh3 {[%clk 0:00:04]} 88. Rh1+
{[%clk 0:00:01.6]} 88... Kg2 {[%clk 0:00:04.4]} 89. Rh7 {[%clk 0:00:01.9]} 89...
g3 {[%clk 0:00:05]} 90. Rg7 {[%clk 0:00:02.4]} 90... Kh2 {[%clk 0:00:05.3]} 91.
Ke2 {[%clk 0:00:02.7]} 91... g2 {[%clk 0:00:05]} 92. Rh7+ {[%clk 0:00:03.3]}
92... Kg1 {[%clk 0:00:05.7]} 93. Rg7 {[%clk 0:00:03.8]} 93... Rf5 {[%clk
0:00:06]} 94. Rg6 {[%clk 0:00:03.5]} 94... Rf8 {[%clk 0:00:06.1]} 95. Rg7 {[%clk
0:00:03.8]} 95... Re8+ {[%clk 0:00:05.3]} 96. Kf3 {[%clk 0:00:03.7]} 96... Kf1
{[%clk 0:00:05.4]} 97. Rxg2 {[%clk 0:00:02.9]} 97... Rf8+ {[%clk 0:00:05.9]} 0-1

[Event "Early-Titled-Tuesday-Blitz-October-03-2023"]
[Site "Chess.com"]
[Date "2023.10.03"]
[Round "4"]
[White "Orujov2008"]
[Black "szachuspl"]
[Result "0-1"]
[WhiteElo "2646"]
[BlackElo "2520"]
[TimeControl "180+1"]
[EndTime "8:42:34 PDT"]
[Termination "szachuspl won on time"]

1. e4 {[%clk 0:03:00.9]} 1... c5 {[%clk 0:02:58.7]} 2. Nf3 {[%clk 0:03:01]} 2...
Nf6 {[%clk 0:02:58.9]} 3. Nc3 {[%clk 0:03:00.1]} 3... d5 {[%clk 0:02:56.7]} 4.
exd5 {[%clk 0:02:58.9]} 4... Nxd5 {[%clk 0:02:56.8]} 5. Nxd5 {[%clk 0:02:53.5]}
5... Qxd5 {[%clk 0:02:56.4]} 6. d4 {[%clk 0:02:54.4]} 6... Bg4 {[%clk
0:02:51.5]} 7. Be2 {[%clk 0:02:49.2]} 7... cxd4 {[%clk 0:02:50.6]} 8. O-O {[%clk
0:02:44.5]} 8... Nc6 {[%clk 0:02:46.7]} 9. c4 {[%clk 0:02:39.6]} 9... Qd7 {[%clk
0:02:33.7]} 10. Re1 {[%clk 0:02:33]} 10... Rd8 {[%clk 0:02:28.6]} 11. h3 {[%clk
0:02:25.3]} 11... Bxf3 {[%clk 0:02:25]} 12. Bxf3 {[%clk 0:02:21.8]} 12... e6
{[%clk 0:02:25.4]} 13. a3 {[%clk 0:02:15.8]} 13... Be7 {[%clk 0:02:22]} 14. b4
{[%clk 0:02:13.6]} 14... O-O {[%clk 0:02:21.3]} 15. Bb2 {[%clk 0:02:08.4]} 15...
Bf6 {[%clk 0:02:17.3]} 16. Qb3 {[%clk 0:02:01.3]} 16... a6 {[%clk 0:02:15.2]}
17. Rad1 {[%clk 0:02:00.7]} 17... Qc7 {[%clk 0:02:12.7]} 18. a4 {[%clk
0:01:53.7]} 18... h6 {[%clk 0:01:45.3]} 19. c5 {[%clk 0:01:49.8]} 19... a5
{[%clk 0:01:37]} 20. b5 {[%clk 0:01:49.5]} 20... Nb4 {[%clk 0:01:37.2]} 21. c6
{[%clk 0:01:36.8]} 21... bxc6 {[%clk 0:01:35.1]} 22. bxc6 {[%clk 0:01:37.7]}
22... Nxc6 {[%clk 0:01:30.6]} 23. Qc4 {[%clk 0:01:37.8]} 23... Qb6 {[%clk
0:01:23.8]} 24. Qxc6 {[%clk 0:01:31.5]} 24... Qxb2 {[%clk 0:01:23.4]} 25. Be4
{[%clk 0:01:32.2]} 25... Rc8 {[%clk 0:01:19.5]} 26. Qb5 {[%clk 0:01:25.2]} 26...
Qxb5 {[%clk 0:01:12.3]} 27. axb5 {[%clk 0:01:26.1]} 27... Rb8 {[%clk 0:01:12.5]}
28. Bc6 {[%clk 0:01:23.4]} 28... Rfd8 {[%clk 0:00:51.9]} 29. Rd3 {[%clk
0:01:23]} 29... e5 {[%clk 0:00:47]} 30. f3 {[%clk 0:01:18.7]} 30... Rb6 {[%clk
0:00:42.4]} 31. Ra1 {[%clk 0:01:15.5]} 31... Rc8 {[%clk 0:00:34.6]} 32. Rxa5
{[%clk 0:01:12.6]} 32... Rcxc6 {[%clk 0:00:34.3]} 33. bxc6 {[%clk 0:01:08]}
33... Rxc6 {[%clk 0:00:34.7]} 34. Kf2 {[%clk 0:01:05.5]} 34... h5 {[%clk
0:00:33]} 35. g3 {[%clk 0:01:01.7]} 35... h4 {[%clk 0:00:31.6]} 36. g4 {[%clk
0:00:58.4]} 36... Rc2+ {[%clk 0:00:30.6]} 37. Kg1 {[%clk 0:00:56.3]} 37... Kh7
{[%clk 0:00:27.6]} 38. g5 {[%clk 0:00:49.9]} 38... Bxg5 {[%clk 0:00:27.1]} 39.
Rxe5 {[%clk 0:00:50.5]} 39... Be3+ {[%clk 0:00:21.2]} 40. Kh1 {[%clk 0:00:45.4]}
40... Kg6 {[%clk 0:00:18.1]} 41. Re4 {[%clk 0:00:42.1]} 41... Rc1+ {[%clk
0:00:17.8]} 42. Kg2 {[%clk 0:00:40.1]} 42... Kh5 {[%clk 0:00:15.3]} 43. Re5+
{[%clk 0:00:37.4]} 43... g5 {[%clk 0:00:14.7]} 44. Re4 {[%clk 0:00:31.2]} 44...
Rc2+ {[%clk 0:00:12.9]} 45. Kh1 {[%clk 0:00:26.3]} 45... Rc1+ {[%clk 0:00:12.6]}
46. Kh2 {[%clk 0:00:22.8]} 46... Bg1+ {[%clk 0:00:12.4]} 47. Kg2 {[%clk
0:00:21.5]} 47... Be3 {[%clk 0:00:11.1]} 48. Rexe3 {[%clk 0:00:17.8]} 48... Rc2+
{[%clk 0:00:10.1]} 49. Kg1 {[%clk 0:00:16.5]} 49... dxe3 {[%clk 0:00:10.6]} 50.
Rxe3 {[%clk 0:00:17.2]} 50... Kg6 {[%clk 0:00:11.1]} 51. Re4 {[%clk 0:00:14.6]}
51... Kf5 {[%clk 0:00:10.5]} 52. Rg4 {[%clk 0:00:14.7]} 52... f6 {[%clk
0:00:10.6]} 53. Re4 {[%clk 0:00:13.2]} 53... Rd2 {[%clk 0:00:10.2]} 54. Rg4
{[%clk 0:00:12.6]} 54... Re2 {[%clk 0:00:09.8]} 55. Ra4 {[%clk 0:00:10.8]} 55...
Rd2 {[%clk 0:00:07.8]} 56. Re4 {[%clk 0:00:10.7]} 56... Rb2 {[%clk 0:00:07.3]}
57. Rg4 {[%clk 0:00:09.8]} 57... Rb5 {[%clk 0:00:07.7]} 58. Re4 {[%clk
0:00:09.5]} 58... Re5 {[%clk 0:00:07.8]} 59. Ra4 {[%clk 0:00:09.8]} 59... Kg6
{[%clk 0:00:07.8]} 60. Kf2 {[%clk 0:00:09.2]} 60... Rc5 {[%clk 0:00:08.1]} 61.
Ra2 {[%clk 0:00:08.7]} 61... Rc1 {[%clk 0:00:08]} 62. Kg2 {[%clk 0:00:08.6]}
62... Rc4 {[%clk 0:00:07.1]} 63. Ra5 {[%clk 0:00:06.6]} 63... Kf7 {[%clk
0:00:07]} 64. Ra6 {[%clk 0:00:06.5]} 64... Ke7 {[%clk 0:00:06.8]} 65. Rb6 {[%clk
0:00:05.3]} 65... Kf7 {[%clk 0:00:07]} 66. Ra6 {[%clk 0:00:05.1]} 66... Kg6
{[%clk 0:00:07.7]} 67. Ra5 {[%clk 0:00:05.2]} 67... Rf4 {[%clk 0:00:07.8]} 68.
Rb5 {[%clk 0:00:04.8]} 68... Rf5 {[%clk 0:00:08.2]} 69. Rb4 {[%clk 0:00:05.2]}
69... Re5 {[%clk 0:00:08.1]} 70. Rg4 {[%clk 0:00:05.2]} 70... Kf5 {[%clk
0:00:08.3]} 71. Rb4 {[%clk 0:00:05]} 71... Rd5 {[%clk 0:00:08.6]} 72. Rc4 {[%clk
0:00:05.1]} 72... Rd2+ {[%clk 0:00:09.2]} 73. Kg1 {[%clk 0:00:04.9]} 73... Ra2
{[%clk 0:00:09.9]} 74. Re4 {[%clk 0:00:04.4]} 74... Kg6 {[%clk 0:00:09.8]} 75.
Rb4 {[%clk 0:00:03.4]} 75... f5 {[%clk 0:00:09.8]} 76. Rb6+ {[%clk 0:00:03.5]}
76... Kh5 {[%clk 0:00:10.1]} 77. Rb5 {[%clk 0:00:04.1]} 77... f4 {[%clk
0:00:09.7]} 78. Rb4 {[%clk 0:00:03.5]} 78... Re2 {[%clk 0:00:09.4]} 79. Rb6
{[%clk 0:00:03.1]} 79... Re5 {[%clk 0:00:09]} 80. Rc6 {[%clk 0:00:03.5]} 80...
Rd5 {[%clk 0:00:09.2]} 81. Rb6 {[%clk 0:00:03.7]} 81... Rd3 {[%clk 0:00:09.4]}
82. Kg2 {[%clk 0:00:03.1]} 82... Rd8 {[%clk 0:00:09.6]} 83. Kf2 {[%clk
0:00:03.4]} 83... Rg8 {[%clk 0:00:10.1]} 84. Kg1 {[%clk 0:00:03.7]} 84... Rg6
{[%clk 0:00:10.5]} 85. Rb8 {[%clk 0:00:04.2]} 85... Kh6 {[%clk 0:00:10.4]} 86.
Rb7 {[%clk 0:00:04.7]} 86... Rd6 {[%clk 0:00:10.5]} 87. Kg2 {[%clk 0:00:04.9]}
87... Kg6 {[%clk 0:00:10.9]} 88. Kf2 {[%clk 0:00:04]} 88... Rd5 {[%clk
0:00:10.6]} 89. Rb6+ {[%clk 0:00:04]} 89... Kf5 {[%clk 0:00:11]} 90. Ra6 {[%clk
0:00:04.1]} 90... Ke5 {[%clk 0:00:11.5]} 91. Rg6 {[%clk 0:00:04.1]} 91... Kd4
{[%clk 0:00:11.5]} 92. Re6 {[%clk 0:00:04.3]} 92... Kd3 {[%clk 0:00:11.7]} 93.
Re4 {[%clk 0:00:04.1]} 93... Kd2 {[%clk 0:00:11.9]} 94. Kg1 {[%clk 0:00:03.5]}
94... Rd3 {[%clk 0:00:10.7]} 95. Kg2 {[%clk 0:00:01.5]} 95... Re3 {[%clk
0:00:09.9]} 96. Rd4+ {[%clk 0:00:01.5]} 96... Ke2 {[%clk 0:00:10.5]} 97. Ra4
{[%clk 0:00:01.8]} 97... Rd3 {[%clk 0:00:10.2]} 98. Ra2+ {[%clk 0:00:02]} 98...
Rd2 {[%clk 0:00:10.7]} 99. Ra3 {[%clk 0:00:02]} 99... Ke1+ {[%clk 0:00:10.7]}
100. Kg1 {[%clk 0:00:02.6]} 100... Ke2 {[%clk 0:00:10.2]} 101. Kg2 {[%clk
0:00:02.7]} 101... Rc2 {[%clk 0:00:10.8]} 102. Kg1 {[%clk 0:00:01.7]} 102... Rb2
{[%clk 0:00:09.1]} 103. Kg2 {[%clk 0:00:02.1]} 103... Rd2 {[%clk 0:00:10]} 104.
Kg1 {[%clk 0:00:02.5]} 104... Ke1 {[%clk 0:00:09.3]} 105. Ra1+ {[%clk
0:00:01.7]} 105... Ke2 {[%clk 0:00:08.5]} 106. Ra3 {[%clk 0:00:02.6]} 106... Rd3
{[%clk 0:00:08.7]} 107. Kg2 {[%clk 0:00:02.9]} 107... Rxa3 {[%clk 0:00:08.5]}
108. Kg1 {[%clk 0:00:02.9]} 108... Kxf3 {[%clk 0:00:08.6]} 0-1

[Event "Early-Titled-Tuesday-Blitz-October-03-2023"]
[Site "Chess.com"]
[Date "2023.10.03"]
[Round "5"]
[White "Biregina"]
[Black "vasblesk"]
[Result "0-1"]
[WhiteElo "2463"]
[BlackElo "2684"]
[TimeControl "180+1"]
[EndTime "8:51:13 PDT"]
[Termination "vasblesk won by resignation"]

1. d3 {[%clk 0:02:42.6]} 1... d5 {[%clk 0:02:58]} 2. Nf3 {[%clk 0:02:42.4]} 2...
Nf6 {[%clk 0:02:57.7]} 3. Nbd2 {[%clk 0:02:43]} 3... c5 {[%clk 0:02:52.7]} 4. e3
{[%clk 0:02:41.2]} 4... Nc6 {[%clk 0:02:52]} 5. c4 {[%clk 0:02:41.1]} 5... e5
{[%clk 0:02:51.4]} 6. Be2 {[%clk 0:02:37.9]} 6... Be7 {[%clk 0:02:50.8]} 7. O-O
{[%clk 0:02:38.5]} 7... O-O {[%clk 0:02:50.5]} 8. cxd5 {[%clk 0:02:38.8]} 8...
Nxd5 {[%clk 0:02:51.4]} 9. Nc4 {[%clk 0:02:38.7]} 9... f6 {[%clk 0:02:51.6]} 10.
a3 {[%clk 0:02:38.5]} 10... Kh8 {[%clk 0:02:50.9]} 11. Bd2 {[%clk 0:02:38.9]}
11... Be6 {[%clk 0:02:50.4]} 12. e4 {[%clk 0:02:35.3]} 12... Nc7 {[%clk
0:02:49.6]} 13. Ne3 {[%clk 0:02:34.5]} 13... Nb5 {[%clk 0:02:49.1]} 14. Rc1
{[%clk 0:02:30.8]} 14... Nbd4 {[%clk 0:02:48]} 15. Nxd4 {[%clk 0:02:28.3]} 15...
Nxd4 {[%clk 0:02:48.9]} 16. Bg4 {[%clk 0:02:25.8]} 16... Bb3 {[%clk 0:02:48.9]}
17. Qe1 {[%clk 0:02:23.6]} 17... b5 {[%clk 0:02:39.5]} 18. f4 {[%clk 0:02:18.5]}
18... Bd6 {[%clk 0:02:37.3]} 19. fxe5 {[%clk 0:01:57.8]} 19... fxe5 {[%clk
0:02:38.2]} 20. Qh4 {[%clk 0:01:56.3]} 20... Qxh4 {[%clk 0:02:30.3]} 0-1

[Event "Early-Titled-Tuesday-Blitz-October-03-2023"]
[Site "Chess.com"]
[Date "2023.10.03"]
[Round "5"]
[White "Barmen_EV"]
[Black "Goi_Manne"]
[Result "1-0"]
[WhiteElo "2449"]
[BlackElo "2290"]
[TimeControl "180+1"]
[EndTime "8:51:14 PDT"]
[Termination "Barmen_EV won by resignation"]

1. e4 {[%clk 0:02:56.2]} 1... c6 {[%clk 0:03:00.1]} 2. d4 {[%clk 0:02:55.7]}
2... d5 {[%clk 0:03:01]} 3. e5 {[%clk 0:02:56]} 3... Bf5 {[%clk 0:03:00.6]} 4.
h4 {[%clk 0:02:56.4]} 4... Qc7 {[%clk 0:03:00.2]} 5. g4 {[%clk 0:02:52.9]} 5...
Bd7 {[%clk 0:03:00.1]} 6. f4 {[%clk 0:02:52.7]} 6... c5 {[%clk 0:03:00.1]} 7. c3
{[%clk 0:02:51.8]} 7... cxd4 {[%clk 0:02:58.8]} 8. Be2 {[%clk 0:02:39.2]} 8...
dxc3 {[%clk 0:02:55.1]} 9. Nxc3 {[%clk 0:02:40.1]} 9... e6 {[%clk 0:02:55.6]}
10. Nf3 {[%clk 0:02:40]} 10... Bc5 {[%clk 0:02:52.8]} 11. f5 {[%clk 0:02:36.4]}
11... exf5 {[%clk 0:02:50.9]} 12. Nxd5 {[%clk 0:02:34.8]} 12... Qc6 {[%clk
0:02:44.4]} 13. gxf5 {[%clk 0:02:13]} 13... Bxf5 {[%clk 0:02:45.3]} 14. Bb5
{[%clk 0:02:12.2]} 14... Bb4+ {[%clk 0:02:20.4]} 15. Kf2 {[%clk 0:02:11.7]}
15... Bc5+ {[%clk 0:02:18.4]} 16. Kg2 {[%clk 0:02:09.8]} 16... Ne7 {[%clk
0:02:13.8]} 17. Nc7+ {[%clk 0:02:07.3]} 17... Kf8 {[%clk 0:02:12.8]} 18. Qd8+
{[%clk 0:02:07]} 1-0

[Event "Early-Titled-Tuesday-Blitz-October-03-2023"]
[Site "Chess.com"]
[Date "2023.10.03"]
[Round "5"]
[White "CarlosjPineror"]
[Black "i_like_explosions"]
[Result "1-0"]
[WhiteElo "2505"]
[BlackElo "2388"]
[TimeControl "180+1"]
[EndTime "8:51:31 PDT"]
[Termination "CarlosjPineror won by resignation"]

1. e4 {[%clk 0:02:55]} 1... c5 {[%clk 0:02:57.3]} 2. Nf3 {[%clk 0:02:51.1]} 2...
Nc6 {[%clk 0:02:56.9]} 3. d4 {[%clk 0:02:47.4]} 3... c4 {[%clk 0:02:56.9]} 4.
Bxc4 {[%clk 0:02:46.6]} 4... d6 {[%clk 0:02:53]} 5. h3 {[%clk 0:02:43.9]} 5...
g6 {[%clk 0:02:51.7]} 6. O-O {[%clk 0:02:38.7]} 6... Bg7 {[%clk 0:02:51.9]} 7.
c3 {[%clk 0:02:38.9]} 7... e6 {[%clk 0:02:51.8]} 8. Bg5 {[%clk 0:02:38.3]} 8...
Nge7 {[%clk 0:02:51.9]} 9. Qd2 {[%clk 0:02:34.9]} 9... h6 {[%clk 0:02:51.9]} 10.
Be3 {[%clk 0:02:33.5]} 10... d5 {[%clk 0:02:50.2]} 11. exd5 {[%clk 0:02:32.9]}
11... Nxd5 {[%clk 0:02:48.6]} 12. Bxd5 {[%clk 0:02:31.1]} 12... Qxd5 {[%clk
0:02:48.1]} 13. Na3 {[%clk 0:02:30.2]} 13... a6 {[%clk 0:02:41.5]} 14. Rfe1
{[%clk 0:02:23.8]} 14... g5 {[%clk 0:02:34.9]} 15. c4 {[%clk 0:02:22.6]} 15...
Qf5 {[%clk 0:02:34.5]} 16. d5 {[%clk 0:02:21.2]} 16... Nd8 {[%clk 0:02:29.3]}
17. Bd4 {[%clk 0:02:20.9]} 17... O-O {[%clk 0:02:27.6]} 18. Bxg7 {[%clk
0:02:19.6]} 18... Kxg7 {[%clk 0:02:28.5]} 19. Re5 {[%clk 0:02:14.3]} 19... Qf6
{[%clk 0:02:22.8]} 20. Rae1 {[%clk 0:02:14.5]} 20... Bd7 {[%clk 0:02:19.5]} 21.
Nb1 {[%clk 0:02:07.3]} 21... b6 {[%clk 0:02:15.8]} 22. Nc3 {[%clk 0:02:07.4]}
22... Nb7 {[%clk 0:02:15]} 23. Ne4 {[%clk 0:02:07.6]} 23... Qg6 {[%clk
0:02:15.1]} 24. Nexg5 {[%clk 0:02:03.3]} 1-0

[Event "Early-Titled-Tuesday-Blitz-October-03-2023"]
[Site "Chess.com"]
[Date "2023.10.03"]
[Round "5"]
[White "Mihajlovskij"]
[Black "ezkybel"]
[Result "0-1"]
[WhiteElo "2279"]
[BlackElo "2472"]
[TimeControl "180+1"]
[EndTime "8:52:18 PDT"]
[Termination "ezkybel won by resignation"]

1. e4 {[%clk 0:03:00.9]} 1... e6 {[%clk 0:02:26.6]} 2. d4 {[%clk 0:02:59.7]}
2... d5 {[%clk 0:02:16.3]} 3. e5 {[%clk 0:02:59.4]} 3... c5 {[%clk 0:02:15.1]}
4. c3 {[%clk 0:02:59.4]} 4... Nc6 {[%clk 0:02:16]} 5. Nf3 {[%clk 0:02:59]} 5...
Bd7 {[%clk 0:02:16.9]} 6. Bd3 {[%clk 0:02:58.2]} 6... Nge7 {[%clk 0:02:14.7]} 7.
dxc5 {[%clk 0:02:53.5]} 7... Ng6 {[%clk 0:02:13]} 8. Qe2 {[%clk 0:02:53.7]} 8...
Bxc5 {[%clk 0:02:11.8]} 9. O-O {[%clk 0:02:53]} 9... O-O {[%clk 0:02:06]} 10. b4
{[%clk 0:02:52.5]} 10... Bb6 {[%clk 0:02:04.7]} 11. g3 {[%clk 0:02:51.5]} 11...
a6 {[%clk 0:02:03.1]} 12. a4 {[%clk 0:02:50.7]} 12... Rc8 {[%clk 0:02:02.3]} 13.
h4 {[%clk 0:02:49.5]} 13... Bc7 {[%clk 0:02:01.8]} 14. Bxg6 {[%clk 0:02:26.9]}
14... fxg6 {[%clk 0:01:58]} 15. Bf4 {[%clk 0:02:24]} 15... Rf5 {[%clk
0:01:46.2]} 16. Nd4 {[%clk 0:02:11.7]} 16... Rxf4 {[%clk 0:01:37.5]} 17. gxf4
{[%clk 0:02:12.6]} 17... Qxh4 {[%clk 0:01:36.2]} 18. Qe3 {[%clk 0:02:02]} 18...
Rf8 {[%clk 0:01:34.3]} 19. Ne2 {[%clk 0:02:01.7]} 19... Ne7 {[%clk 0:01:27.2]}
20. Qg3 {[%clk 0:02:00.3]} 20... Qh5 {[%clk 0:01:23.1]} 21. Nd2 {[%clk
0:01:55.9]} 21... Qxe2 {[%clk 0:01:21.1]} 0-1

[Event "Early-Titled-Tuesday-Blitz-October-03-2023"]
[Site "Chess.com"]
[Date "2023.10.03"]
[Round "5"]
[White "Dixit_Nikhil"]
[Black "Murad_Ibrahimli"]
[Result "1/2-1/2"]
[WhiteElo "2643"]
[BlackElo "2912"]
[TimeControl "180+1"]
[EndTime "8:52:20 PDT"]
[Termination "Game drawn by repetition"]

1. e4 {[%clk 0:03:00.9]} 1... c5 {[%clk 0:02:57.5]} 2. Nf3 {[%clk 0:03:00.1]}
2... d6 {[%clk 0:02:57.9]} 3. Bb5+ {[%clk 0:02:54.6]} 3... Bd7 {[%clk
0:02:54.9]} 4. Bxd7+ {[%clk 0:02:50]} 4... Qxd7 {[%clk 0:02:55.8]} 5. O-O {[%clk
0:02:50.2]} 5... Nf6 {[%clk 0:02:56.1]} 6. e5 {[%clk 0:02:49.3]} 6... dxe5
{[%clk 0:02:54.5]} 7. Nxe5 {[%clk 0:02:50.2]} 7... Qc8 {[%clk 0:02:53.3]} 8. d3
{[%clk 0:02:48]} 8... Nc6 {[%clk 0:02:51.4]} 9. Nxc6 {[%clk 0:02:44.2]} 9...
Qxc6 {[%clk 0:02:52.3]} 10. Nc3 {[%clk 0:02:44]} 10... e6 {[%clk 0:02:52.2]} 11.
Qe2 {[%clk 0:02:44.1]} 11... Be7 {[%clk 0:02:52.2]} 12. Bg5 {[%clk 0:02:43.5]}
12... O-O {[%clk 0:02:51.5]} 13. Ne4 {[%clk 0:02:43.3]} 13... Nxe4 {[%clk
0:02:40.2]} 14. Bxe7 {[%clk 0:02:44.2]} 14... Rfe8 {[%clk 0:02:40.8]} 15. Qxe4
{[%clk 0:02:42.1]} 15... Qxe4 {[%clk 0:02:40]} 16. dxe4 {[%clk 0:02:43]} 16...
Rxe7 {[%clk 0:02:40.7]} 17. Rad1 {[%clk 0:02:43.6]} 17... Rc7 {[%clk 0:02:40.3]}
18. Rd6 {[%clk 0:02:38.2]} 18... Kf8 {[%clk 0:02:40.7]} 19. Rfd1 {[%clk
0:02:38.8]} 19... Ke7 {[%clk 0:02:41.4]} 20. Kf1 {[%clk 0:02:38.6]} 20... c4
{[%clk 0:02:41.2]} 21. Ke2 {[%clk 0:02:36.3]} 21... b6 {[%clk 0:02:32.6]} 22.
Ke3 {[%clk 0:02:36.1]} 22... Rb8 {[%clk 0:02:30.4]} 23. c3 {[%clk 0:02:31.9]}
23... a5 {[%clk 0:02:28.5]} 24. a4 {[%clk 0:02:24.3]} 24... b5 {[%clk
0:02:28.1]} 25. Ra6 {[%clk 0:02:23.9]} 25... bxa4 {[%clk 0:02:26.8]} 26. Rxa5
{[%clk 0:02:12.6]} 26... Rxb2 {[%clk 0:02:26.6]} 27. Rxa4 {[%clk 0:02:07.5]}
27... Rc2 {[%clk 0:02:26.7]} 28. Ra3 {[%clk 0:02:06.4]} 28... e5 {[%clk
0:02:26.5]} 29. Rd2 {[%clk 0:01:59]} 29... Rc1 {[%clk 0:02:18.9]} 30. Ke2 {[%clk
0:01:56.2]} 30... f6 {[%clk 0:02:18.1]} 31. Rd1 {[%clk 0:01:56.1]} 31... Rc2+
{[%clk 0:02:15.7]} 32. Rd2 {[%clk 0:01:56.2]} 32... Rc1 {[%clk 0:02:16.4]} 33.
Rd1 {[%clk 0:01:56.7]} 33... Rc2+ {[%clk 0:02:03.2]} 34. Rd2 {[%clk 0:01:56.4]}
34... Rc1 {[%clk 0:01:59.1]} 1/2-1/2